bitfinex/quotes_BTCUSD_20230109
["timestamp","ask_amount","ask_price","bid_price","bid_amount"]
[1673302220161,2.59674757,17180.0,17179.0,1.8577432]
[1673302220409,2.42356624,17180.0,17179.0,1.8577432]
[1673302220667,2.42356624,17180.0,17179.0,1.85784989]
[1673302220922,2.42356624,17180.0,17179.0,1.8577432]
[1673302221722,2.42356624,17180.0,17179.0,1.85784989]
[1673302222242,2.42356624,17180.0,17179.0,1.8577432]
[1673302222767,2.42356624,17180.0,17179.0,1.84925108]
[1673302226197,2.42356624,17180.0,17179.0,1.84936256]
[1673302226198,2.42356624,17180.0,17179.0,1.84925108]
[1673302227467,2.42356624,17180.0,17179.0,1.26714508]
[1673302234274,2.42356624,17180.0,17179.0,1.84925108]
[1673302234515,2.42356624,17180.0,17179.0,1.84936256]
[1673302234732,2.42356624,17180.0,17179.0,1.84925108]
[1673302236999,2.42356624,17180.0,17179.0,1.84936256]
[1673302237252,2.42356624,17180.0,17179.0,1.84925108]
[1673302242681,2.59674757,17180.0,17179.0,1.84925108]
[1673302242932,2.42356624,17180.0,17179.0,1.84925108]
[1673302243457,2.59674757,17180.0,17179.0,1.84925108]
[1673302244254,2.42356624,17180.0,17179.0,1.84925108]
[1673302244508,2.42356624,17180.0,17179.0,2.99433485]
[1673302246392,2.42356624,17180.0,17179.0,2.82006383]
[1673302246611,2.42356624,17180.0,17179.0,2.99433485]
[1673302247397,2.42356624,17180.0,17179.0,1.98762195]
[1673302248446,2.42356624,17180.0,17179.0,1.98772886]
[1673302248701,2.42356624,17180.0,17179.0,1.98762195]
[1673302249738,2.59674757,17180.0,17179.0,1.98762195]
[1673302250794,2.59674757,17180.0,17179.0,1.98772886]
[1673302251317,2.42356624,17180.0,17179.0,1.98762195]
[1673302251837,2.42356624,17180.0,17179.0,1.98772886]
[1673302252099,2.42356624,17180.0,17179.0,1.98762195]
[1673302252847,2.42356624,17180.0,17179.0,1.98772887]
[1673302253611,2.42356624,17180.0,17179.0,2.28772887]
[1673302253862,2.42356624,17180.0,17179.0,2.46189297]
[1673302255435,2.42356624,17180.0,17179.0,2.46199989]
[1673302255691,2.42348773,17180.0,17179.0,3.78908234]
[1673302255958,2.42348773,17180.0,17179.0,3.97381434]
[1673302256221,2.42348773,17180.0,17179.0,4.14867124]
[1673302256496,2.42348773,17180.0,17179.0,3.9741707]
[1673302257014,2.42348773,17180.0,17179.0,4.41040879]
[1673302257805,2.42348773,17180.0,17179.0,3.9741707]
[1673302260643,2.42348773,17180.0,17179.0,4.34867124]
[1673302263239,2.42348773,17180.0,17179.0,4.84391148]
[1673302263746,2.42348773,17180.0,17179.0,4.49537476]
[1673302264518,2.42348773,17180.0,17179.0,5.42452243]
[1673302265014,2.42348773,17180.0,17179.0,5.77310507]
[1673302267644,2.42348773,17180.0,17179.0,5.27786483]
[1673302267890,2.42348773,17180.0,17179.0,5.77310507]
[1673302268687,2.42348773,17180.0,17179.0,5.27786483]
[1673302270414,2.42348773,17180.0,17179.0,5.53919503]
[1673302270667,2.42348773,17180.0,17179.0,5.10295694]
[1673302272692,2.42348773,17180.0,17179.0,5.59819718]
[1673302272940,2.42348773,17180.0,17179.0,5.10295694]
[1673302274650,2.42348773,17180.0,17179.0,5.77310507]
[1673302277042,2.4234153,17180.0,17179.0,5.77310507]
[1673302277306,2.4234153,17180.0,17179.0,5.66010507]
[1673302277633,2.4234153,17180.0,17179.0,5.80110507]
[1673302282641,2.4234153,17180.0,17179.0,5.30586483]
[1673302282895,2.4234153,17180.0,17179.0,5.80110507]
[1673302283160,2.4234153,17180.0,17179.0,5.98492243]
[1673302283161,1.27733017,17180.0,17179.0,5.98492243]
[1673302285509,1.27733017,17180.0,17179.0,5.31410968]
[1673302285776,1.27733017,17180.0,17179.0,5.50962006]
[1673302288342,1.27733017,17180.0,17179.0,5.36862006]
[1673302288555,1.27733017,17180.0,17179.0,5.50862006]
[1673302290573,1.27733017,17180.0,17179.0,6.38227733]
[1673302291777,1.27733017,17180.0,17179.0,6.18227733]
[1673302292714,1.27733017,17180.0,17179.0,6.38227733]
[1673302295836,1.27733017,17180.0,17179.0,5.58697029]
[1673302296083,1.27733017,17180.0,17179.0,6.18697029]
[1673302296337,1.27733017,17180.0,17179.0,5.31331302]
[1673302296914,1.27733017,17180.0,17179.0,6.13802508]
[1673302297200,1.27733017,17180.0,17179.0,6.48452532]
[1673302297734,1.27733017,17180.0,17179.0,6.96074126]
[1673302298033,1.27733017,17180.0,17179.0,6.48452532]
[1673302298781,1.27733017,17180.0,17179.0,6.96074126]
[1673302299044,1.27733017,17180.0,17179.0,6.48452532]
[1673302299942,1.27733017,17180.0,17179.0,6.96074126]
[1673302300201,1.27733017,17180.0,17179.0,6.48452532]
[1673302301030,1.27733017,17180.0,17179.0,6.96074126]
[1673302303041,1.07876133,17180.0,17179.0,6.96074126]
[1673302306137,1.07853475,17180.0,17179.0,6.96074126]
[1673302306378,1.07853475,17180.0,17179.0,6.48328866]
[1673302307647,1.07853475,17180.0,17179.0,6.65118866]
[1673302310491,1.07853475,17180.0,17179.0,6.69816437]
[1673302310988,1.07853475,17180.0,17179.0,7.17096003]
[1673302312310,1.07853475,17180.0,17179.0,6.64776838]
[1673302313093,1.07853475,17180.0,17179.0,6.31226838]
[1673302313362,1.07853475,17180.0,17179.0,6.83551321]
[1673302313639,1.07853475,17180.0,17179.0,6.31226838]
[1673302315208,1.07853475,17180.0,17179.0,6.17226838]
[1673302315462,1.07853475,17180.0,17179.0,6.31126838]
[1673302316220,0.87873974,17180.0,17179.0,6.31126838]
[1673302317246,0.81421336,17180.0,17179.0,5.63425633]
[1673302317517,0.46470375,17180.0,17179.0,6.69628482]
[1673302317779,0.46470375,17180.0,17179.0,6.40523482]
[1673302318613,0.05808,17180.0,17179.0,6.40523482]
[1673302318844,0.05808,17180.0,17179.0,6.26780051]
[1673302319101,0.05808,17180.0,17179.0,5.63425633]
[1673302319628,0.05808,17180.0,17179.0,5.49525633]
[1673302319923,0.05808,17180.0,17179.0,5.63425633]
[1673302320388,0.38554789,17180.0,17179.0,5.55391402]
[1673302320658,0.19277,17180.0,17179.0,6.57971988]
[1673302320921,0.19277,17180.0,17179.0,5.80716106]
[1673302321194,0.19277,17180.0,17179.0,5.64887058]
[1673302321435,0.19277,17180.0,17179.0,5.11470771]
[1673302321686,0.19277,17180.0,17179.0,6.01923373]
[1673302321945,0.19277,17180.0,17179.0,5.41470771]
[1673302322201,0.19277,17180.0,17179.0,6.04537562]
[1673302322457,0.19277,17180.0,17179.0,5.41470771]
[1673302322724,0.19277,17180.0,17179.0,6.83118599]
[1673302322991,0.19277,17180.0,17179.0,6.18733333]
[1673302323504,0.19277,17180.0,17179.0,6.90466621]
[1673302325050,0.19277,17180.0,17179.0,6.18733333]
[1673302325308,0.19277,17180.0,17179.0,5.44821577]
[1673302325562,0.04819,17180.0,17179.0,5.44821577]
[1673302325830,0.00015,17182.0,17179.0,5.44821577]
[1673302325831,0.00015,17182.0,17180.0,0.34555554]
[1673302326097,0.00015,17182.0,17181.0,3.35135962]
[1673302326437,0.00015,17182.0,17181.0,6.29898775]
[1673302327140,0.16361507,17185.0,17181.0,6.99898775]
[1673302327410,0.17383507,17185.0,17184.0,1.61032561]
[1673302327790,0.17383507,17185.0,17184.0,4.15032504]
[1673302327985,0.17383507,17185.0,17184.0,4.45032504]
[1673302328272,0.17383507,17185.0,17184.0,5.05344953]
[1673302329099,0.17383507,17185.0,17184.0,5.16744953]
[1673302329364,0.17383507,17185.0,17184.0,5.60321264]
[1673302329615,0.17383507,17185.0,17184.0,5.34182828]
[1673302329616,0.16540764,17185.0,17184.0,5.34182828]
[1673302330151,0.16540764,17185.0,17184.0,5.22782828]
[1673302330949,0.16540764,17185.0,17184.0,4.87907079]
[1673302331226,0.16540764,17185.0,17184.0,5.36856297]
[1673302333791,0.16540764,17185.0,17184.0,5.6298127]
[1673302334059,0.16540764,17185.0,17184.0,5.19386583]
[1673302337938,0.16540764,17185.0,17184.0,5.36800757]
[1673302338212,0.16540764,17185.0,17184.0,5.19386583]
[1673302338960,0.16540764,17185.0,17184.0,4.41776936]
[1673302339532,0.16540764,17185.0,17184.0,3.86704507]
[1673302341590,0.16540764,17185.0,17184.0,4.1282948]
[1673302341845,0.16540764,17185.0,17184.0,4.24787331]
[1673302342376,0.16540764,17185.0,17184.0,4.96521133]
[1673302344455,0.16540764,17185.0,17184.0,5.13990847]
[1673302344715,0.16540764,17185.0,17184.0,4.9652509]
[1673302347828,0.63211553,17185.0,17184.0,1.85995259]
[1673302348087,0.39443764,17185.0,17184.0,1.304872]
[1673302350341,0.39443764,17185.0,17184.0,1.604872]
[1673302350596,0.39443764,17185.0,17184.0,1.304872]
[1673302350878,0.39443764,17185.0,17184.0,1.604872]
[1673302351420,0.39443764,17185.0,17184.0,1.3070239]
[1673302351667,0.39443764,17185.0,17184.0,1.304872]
[1673302352178,0.39443764,17185.0,17184.0,1.604872]
[1673302352461,0.39443764,17185.0,17184.0,1.6070239]
[1673302354800,0.39443764,17185.0,17184.0,1.3070239]
[1673302355527,0.39443764,17185.0,17184.0,1.6070239]
[1673302360788,0.39443764,17185.0,17184.0,2.1889599]
[1673302361866,0.39443764,17185.0,17184.0,1.6070239]
[1673302362380,0.39443764,17185.0,17184.0,2.1889599]
[1673302366465,0.39443764,17185.0,17184.0,3.1889599]
[1673302368540,0.39432867,17185.0,17184.0,3.1889599]
[1673302369518,0.39432867,17185.0,17184.0,2.6070239]
[1673302370593,0.39432867,17185.0,17184.0,3.1889599]
[1673302377714,0.39432867,17185.0,17184.0,1.304872]
[1673302379776,0.39432867,17185.0,17184.0,1.604872]
[1673302380038,0.39432867,17185.0,17184.0,3.36102078]
[1673302381312,0.39432867,17185.0,17184.0,3.36307045]
[1673302385461,0.39432867,17185.0,17184.0,3.62435975]
[1673302387541,0.39432867,17185.0,17184.0,3.73928419]
[1673302387799,0.39432867,17185.0,17184.0,4.3394259]
[1673302388058,0.39432867,17185.0,17184.0,4.68836287]
[1673302388328,0.00415708,17186.0,17185.0,0.63154944]
[1673302388665,0.00453276,17187.0,17186.0,0.3]
[1673302388843,0.00453276,17187.0,17186.0,2.39394767]
[1673302389095,0.00707681,17188.0,17187.0,0.3]
[1673302389349,0.00707681,17188.0,17187.0,3.49057198]
[1673302389572,0.00707681,17188.0,17187.0,3.86866824]
[1673302390099,0.00707681,17188.0,17187.0,4.04350734]
[1673302390353,0.00707681,17188.0,17187.0,4.55614398]
[1673302391399,0.00707681,17188.0,17187.0,4.9207983]
[1673302391689,0.00707681,17188.0,17187.0,4.2006873]
[1673302391946,0.00707681,17188.0,17187.0,4.96546355]
[1673302392493,0.00415708,17189.0,17188.0,0.93110197]
[1673302392759,0.00415708,17189.0,17188.0,7.65655755]
[1673302393019,0.00415708,17189.0,17188.0,7.39548261]
[1673302393552,0.00415708,17189.0,17188.0,6.58903149]
[1673302394081,0.00415708,17189.0,17188.0,7.27015827]
[1673302394346,0.00495016,17190.0,17189.0,0.95795035]
[1673302394610,0.00495016,17190.0,17189.0,3.84684873]
[1673302394876,0.00495016,17190.0,17189.0,4.23635329]
[1673302395139,0.00495016,17190.0,17189.0,4.39378947]
[1673302395387,0.00495016,17190.0,17189.0,3.97551813]
[1673302395644,0.00495016,17190.0,17189.0,3.80162802]
[1673302395901,0.00495016,17190.0,17189.0,3.94062802]
[1673302396155,0.00495016,17190.0,17189.0,4.11451813]
[1673302396973,0.00495016,17190.0,17189.0,3.88183963]
[1673302397254,0.00556495,17194.0,17190.0,0.30182461]
[1673302397255,0.00015,17192.0,17190.0,0.30182461]
[1673302397513,0.00015,17192.0,17191.0,4.04969993]
[1673302397817,0.00556495,17194.0,17192.0,0.3]
[1673302398077,0.00556495,17194.0,17193.0,5.39611232]
[1673302398326,0.00556495,17194.0,17193.0,6.45813949]
[1673302398327,6.495e-05,17194.0,17193.0,6.45813949]
[1673302398598,0.01027056,17195.0,17194.0,0.99397452]
[1673302398856,0.01027056,17195.0,17194.0,3.63271619]
[1673302399150,0.01027056,17195.0,17194.0,3.83706719]
[1673302399665,0.00527056,17195.0,17194.0,3.83706719]
[1673302400186,0.00527056,17195.0,17194.0,3.97606719]
[1673302400521,0.00527056,17195.0,17194.0,4.92906469]
[1673302402234,0.00527056,17195.0,17194.0,4.23509017]
[1673302402484,0.00527056,17195.0,17194.0,4.81489543]
[1673302403204,0.00527056,17195.0,17194.0,4.23509017]
[1673302403450,0.00527056,17195.0,17194.0,4.09609017]
[1673302403688,0.00527056,17195.0,17194.0,4.84745087]
[1673302404491,0.00527056,17195.0,17194.0,4.70845087]
[1673302404751,0.00527056,17195.0,17194.0,4.84745087]
[1673302405005,0.00527056,17195.0,17194.0,4.70845087]
[1673302405816,0.00527056,17195.0,17194.0,4.84745087]
[1673302406945,0.00527056,17195.0,17194.0,4.42225337]
[1673302409227,0.00527056,17195.0,17194.0,4.28325337]
[1673302409557,0.00527056,17195.0,17194.0,4.42325337]
[1673302415151,0.00527056,17195.0,17194.0,4.21890237]
[1673302416721,0.00027056,17195.0,17194.0,4.21890237]
[1673302416986,0.00027056,17195.0,17194.0,4.42325337]
[1673302417283,0.00027056,17195.0,17194.0,4.21890237]
[1673302418054,0.00027056,17195.0,17194.0,4.42325337]
[1673302418569,0.00585982,17196.0,17195.0,0.98375974]
[1673302418570,0.00113038,17196.0,17195.0,0.98375974]
[1673302418821,0.00113038,17196.0,17195.0,2.48375974]
[1673302419076,0.00113038,17196.0,17195.0,4.22845174]
[1673302420084,0.00113038,17196.0,17195.0,4.36945174]
[1673302422603,0.00113038,17196.0,17195.0,4.36970537]
[1673302424974,0.00113038,17196.0,17195.0,4.57404037]
[1673302425394,0.00113038,17196.0,17195.0,4.36970537]
[1673302425606,0.00113038,17196.0,17195.0,4.57404037]
[1673302435547,0.00113038,17196.0,17195.0,5.12100133]
[1673302436167,0.00113038,17196.0,17195.0,5.29451918]
[1673302438528,0.00113038,17196.0,17195.0,5.46880921]
[1673302438743,0.00113038,17196.0,17195.0,5.12177352]
[1673302439453,0.00101512,17196.0,17195.0,5.12177352]
[1673302440582,0.00101512,17196.0,17195.0,5.29451918]
[1673302440835,0.00101512,17196.0,17195.0,5.99758684]
[1673302441058,0.00101512,17196.0,17195.0,5.45643045]
[1673302441285,0.00101512,17196.0,17195.0,6.10469561]
[1673302441502,0.00101512,17196.0,17195.0,5.96369561]
[1673302441657,0.00101512,17196.0,17195.0,5.96105761]
[1673302442087,0.00101512,17196.0,17195.0,6.10005761]
[1673302445173,0.00101512,17196.0,17195.0,5.96105761]
[1673302445382,0.00101512,17196.0,17195.0,5.45179245]
[1673302445748,0.00101512,17196.0,17195.0,5.01795415]
[1673302446709,0.00101512,17196.0,17195.0,5.06089375]
[1673302447430,0.00101512,17196.0,17195.0,5.33140948]
[1673302447670,0.00101512,17196.0,17195.0,5.3313153]
[1673302447916,0.00101512,17196.0,17195.0,5.06089375]
[1673302448198,0.00101512,17196.0,17195.0,4.92189375]
[1673302448456,0.00101512,17196.0,17195.0,5.85476179]
[1673302448952,0.00101512,17196.0,17195.0,5.71576179]
[1673302449206,0.00101512,17196.0,17195.0,5.33131469]
[1673302449457,0.00101512,17196.0,17195.0,5.33122962]
[1673302449705,0.00101512,17196.0,17195.0,5.85467672]
[1673302450707,0.00101512,17196.0,17195.0,6.65950039]
[1673302451448,0.00101512,17196.0,17195.0,5.86571742]
[1673302451942,0.00101512,17196.0,17195.0,6.58459933]
[1673302452685,0.00101512,17196.0,17195.0,6.54165973]
[1673302453162,0.00101512,17196.0,17195.0,6.97670709]
[1673302454158,0.00101512,17196.0,17195.0,6.25150959]
[1673302454403,0.00101512,17196.0,17195.0,6.25152899]
[1673302455159,0.00101512,17196.0,17195.0,6.42555648]
[1673302455411,0.00101512,17196.0,17195.0,6.59958699]
[1673302455657,0.00101512,17196.0,17195.0,6.72555648]
[1673302456156,0.00101512,17196.0,17195.0,6.55154843]
[1673302456660,0.00101512,17196.0,17195.0,6.35154843]
[1673302457425,0.00101512,17196.0,17195.0,6.69960251]
[1673302457669,0.00101512,17196.0,17195.0,7.58580134]
[1673302457912,0.00101512,17196.0,17195.0,7.32476117]
[1673302459208,0.00101512,17196.0,17195.0,6.89956367]
[1673302461922,0.00093337,17196.0,17195.0,6.89956367]
[1673302465310,0.00093337,17196.0,17195.0,6.39497504]
[1673302465579,0.00093337,17196.0,17195.0,5.49870725]
[1673302466052,0.00093337,17196.0,17195.0,5.93409355]
[1673302466565,0.00093337,17196.0,17195.0,6.23558707]
[1673302466839,0.00093337,17196.0,17195.0,6.35668617]
[1673302467067,0.00093337,17196.0,17195.0,5.97435985]
[1673302467321,0.00093337,17196.0,17195.0,5.16953618]
[1673302468340,0.00093337,17196.0,17195.0,5.55209278]
[1673302468599,0.00093337,17196.0,17195.0,5.93032278]
[1673302469644,0.00093337,17196.0,17195.0,6.10414292]
[1673302469874,0.00093337,17196.0,17195.0,6.36541305]
[1673302470135,0.00093337,17196.0,17195.0,5.93036569]
[1673302470649,0.00093337,17196.0,17195.0,6.10414292]
[1673302470966,0.00093337,17196.0,17195.0,5.8006722]
[1673302471184,0.00093337,17196.0,17195.0,6.14902588]
[1673302471914,0.00093337,17196.0,17195.0,5.8006722]
[1673302472425,0.00093337,17196.0,17195.0,6.14904635]
[1673302472684,0.00093337,17196.0,17195.0,5.8006722]
[1673302472939,0.00093337,17196.0,17195.0,6.14904657]
[1673302473195,0.00093337,17196.0,17195.0,5.5033102]
[1673302473970,0.00093337,17196.0,17195.0,5.49346034]
[1673302474743,0.00093337,17196.0,17195.0,5.06826284]
[1673302476295,0.00093337,17196.0,17195.0,5.44887698]
[1673302476550,0.00093337,17196.0,17195.0,5.02367948]
[1673302477582,0.00093337,17196.0,17195.0,5.30261953]
[1673302478113,0.00093337,17196.0,17195.0,5.02367948]
[1673302478399,0.00093337,17196.0,17195.0,5.30261718]
[1673302478645,0.00093337,17196.0,17195.0,5.34720054]
[1673302478899,0.00093337,17196.0,17195.0,5.49346034]
[1673302479149,0.00093337,17196.0,17195.0,5.77240197]
[1673302479672,0.00093337,17196.0,17195.0,6.29584907]
[1673302480783,0.00093337,17196.0,17195.0,5.57696716]
[1673302481065,0.00131679,17198.0,17196.0,0.00026683]
[1673302481525,0.00131679,17198.0,17197.0,5.24238582]
[1673302481784,0.00131679,17198.0,17197.0,7.60705933]
[1673302482513,0.00131679,17198.0,17197.0,7.76548435]
[1673302482765,0.00131679,17198.0,17197.0,7.81044211]
[1673302483024,0.00131679,17198.0,17197.0,8.23563961]
[1673302483280,0.00131679,17198.0,17197.0,7.94944211]
[1673302485306,0.00131679,17198.0,17197.0,7.148121]
[1673302485549,0.00131679,17198.0,17197.0,7.5733185]
[1673302490030,0.00131679,17198.0,17197.0,8.00820159]
[1673302490525,0.00123055,17198.0,17197.0,8.00820159]
[1673302491751,0.00123055,17198.0,17197.0,7.58300409]
[1673302492768,0.00123055,17198.0,17197.0,8.00820159]
[1673302494287,0.00123055,17198.0,17197.0,7.5733185]
[1673302494990,0.00123055,17198.0,17197.0,8.00809992]
[1673302495208,0.00123055,17198.0,17197.0,8.1548145]
[1673302496671,0.0063094,17200.0,17197.0,7.76531268]
[1673302496926,0.0063094,17200.0,17199.0,1.8]
[1673302497177,0.0063094,17200.0,17199.0,5.77054633]
[1673302497461,0.0063094,17200.0,17199.0,6.24958949]
[1673302498243,0.0063094,17200.0,17199.0,6.38858949]
[1673302498500,0.01353844,17201.0,17199.0,7.09221756]
[1673302498753,0.01353844,17201.0,17200.0,1.88285958]
[1673302499015,0.01353844,17201.0,17200.0,4.56103566]
[1673302499265,0.01353844,17201.0,17200.0,4.7348221]
[1673302499518,0.01353844,17201.0,17200.0,4.56103566]
[1673302499774,0.01353844,17201.0,17200.0,4.70003566]
[1673302500055,0.01353844,17201.0,17200.0,5.21942831]
[1673302501384,0.01353844,17201.0,17200.0,5.21586731]
[1673302502667,0.01353844,17201.0,17200.0,5.38982577]
[1673302502947,0.01353844,17201.0,17200.0,5.38988577]
[1673302505316,0.01353844,17201.0,17200.0,5.43422603]
[1673302505837,0.01353844,17201.0,17200.0,5.69477403]
[1673302506086,0.01353844,17201.0,17200.0,5.26007113]
[1673302506622,0.01353844,17201.0,17200.0,5.2600721]
[1673302507406,0.01353844,17201.0,17200.0,5.43422603]
[1673302508223,0.01353844,17201.0,17200.0,5.69483031]
[1673302508488,0.01353844,17201.0,17200.0,5.43422603]
[1673302509002,0.01353844,17201.0,17200.0,5.43416603]
[1673302509577,0.01353844,17201.0,17200.0,5.29516603]
[1673302510120,0.01353844,17201.0,17200.0,5.26010917]
[1673302510935,0.01353844,17201.0,17200.0,5.29516603]
[1673302511184,0.01353844,17201.0,17200.0,5.69481213]
[1673302511452,0.01353844,17201.0,17200.0,5.43416603]
[1673302513065,0.01353844,17201.0,17200.0,5.08650677]
[1673302513616,0.01353844,17201.0,17200.0,4.52279236]
[1673302513880,0.01539035,17202.0,17200.0,4.70044197]
[1673302514129,0.01539035,17202.0,17201.0,3.72274279]
[1673302514378,0.01539035,17202.0,17201.0,5.97106779]
[1673302514646,0.01039035,17202.0,17201.0,6.63795206]
[1673302515164,0.01039035,17202.0,17201.0,6.77695206]
[1673302515680,0.01039035,17202.0,17201.0,6.42931316]
[1673302515932,0.01039035,17202.0,17201.0,6.89007316]
[1673302516733,0.01039035,17202.0,17201.0,6.81254963]
[1673302517266,0.01039035,17202.0,17201.0,5.31284963]
[1673302517549,0.01039035,17202.0,17201.0,5.27713899]
[1673302517813,0.01039035,17202.0,17201.0,5.10336868]
[1673302518320,0.01039035,17202.0,17201.0,4.96536868]
[1673302518579,0.01039035,17202.0,17201.0,5.45204245]
[1673302518846,0.01039035,17202.0,17201.0,5.57813899]
[1673302521138,0.01039035,17202.0,17201.0,5.57807899]
[1673302521371,0.01039035,17202.0,17201.0,5.53215064]
[1673302523396,0.01039035,17202.0,17201.0,5.70586128]
[1673302526618,0.01039035,17202.0,17201.0,5.35818731]
[1673302531946,0.01039035,17202.0,17201.0,4.92363869]
[1673302532455,0.01039035,17202.0,17201.0,5.35893948]
[1673302534955,0.01039035,17202.0,17201.0,4.92363869]
[1673302535507,0.01039035,17202.0,17201.0,5.73110182]
[1673302537549,0.0102782,17202.0,17201.0,5.73110182]
[1673302538301,0.0102782,17202.0,17201.0,5.59210182]
[1673302539334,0.0102782,17202.0,17201.0,5.73110182]
[1673302540213,0.0102782,17202.0,17201.0,6.15629932]
[1673302540998,0.0102782,17202.0,17201.0,5.73110182]
[1673302543278,0.0102782,17202.0,17201.0,5.53110182]
[1673302544837,0.0102782,17202.0,17201.0,5.73110182]
[1673302545585,0.0102782,17202.0,17201.0,6.15629932]
[1673302546362,0.0102782,17202.0,17201.0,5.6346706]
[1673302546895,0.0102782,17202.0,17201.0,6.1334706]
[1673302547123,0.0102782,17202.0,17201.0,6.4241406]
[1673302548387,0.0102782,17202.0,17201.0,7.1241406]
[1673302549143,0.0102782,17202.0,17201.0,6.8334706]
[1673302552664,0.0102782,17202.0,17201.0,7.35615209]
[1673302552928,0.0102782,17202.0,17201.0,6.8334706]
[1673302554223,0.0102782,17202.0,17201.0,6.65611299]
[1673302554548,0.0102782,17202.0,17201.0,6.70200242]
[1673302554753,0.0102782,17202.0,17201.0,6.17936003]
[1673302555767,0.0102782,17202.0,17201.0,5.84036003]
[1673302556028,0.0102782,17202.0,17201.0,5.97936003]
[1673302556304,0.0102782,17202.0,17201.0,6.5019661]
[1673302556813,0.0102782,17202.0,17201.0,6.7019661]
[1673302561693,0.0102782,17202.0,17201.0,6.5629661]
[1673302561949,0.0102782,17202.0,17201.0,6.7019661]
[1673302562224,0.01015521,17202.0,17201.0,6.7019661]
[1673302562474,0.01015521,17202.0,17201.0,7.4019661]
[1673302562723,0.01015521,17202.0,17201.0,7.2629661]
[1673302563008,0.01015521,17202.0,17201.0,7.4019661]
[1673302563236,0.01015521,17202.0,17201.0,7.2629661]
[1673302563474,0.01015521,17202.0,17201.0,7.4019661]
[1673302564454,0.01015521,17202.0,17201.0,7.2629661]
[1673302564729,0.01015521,17202.0,17201.0,7.4019661]
[1673302564962,0.01015521,17202.0,17201.0,7.2629661]
[1673302565201,0.01015521,17202.0,17201.0,7.4019661]
[1673302565450,0.01015521,17202.0,17201.0,6.5629661]
[1673302565703,0.01015521,17202.0,17201.0,6.7009661]
[1673302565938,0.01015521,17202.0,17201.0,6.5629661]
[1673302566196,0.01015521,17202.0,17201.0,6.17936003]
[1673302566442,0.01015521,17202.0,17201.0,6.04036003]
[1673302566945,0.01015521,17202.0,17201.0,6.74036003]
[1673302567449,0.01015521,17202.0,17201.0,6.87936003]
[1673302567723,0.01015521,17202.0,17201.0,6.74036003]
[1673302568238,0.01015521,17202.0,17201.0,6.87936003]
[1673302568517,0.01015521,17202.0,17201.0,6.74036003]
[1673302568727,0.01015521,17202.0,17201.0,6.87936003]
[1673302569482,0.01015521,17202.0,17201.0,7.40206987]
[1673302569750,0.01015521,17202.0,17201.0,6.74036003]
[1673302570736,0.00704079,17202.0,17201.0,7.65183686]
[1673302570981,0.00704079,17202.0,17201.0,7.51283686]
[1673302571243,0.00704079,17202.0,17201.0,7.65183686]
[1673302571491,0.00704079,17202.0,17201.0,7.51283686]
[1673302571764,0.00704079,17202.0,17201.0,6.45316253]
[1673302572006,0.00704079,17202.0,17201.0,5.75316253]
[1673302572265,0.00704079,17202.0,17201.0,6.27589929]
[1673302572525,0.00704079,17202.0,17201.0,5.97589929]
[1673302572768,0.00704079,17202.0,17201.0,5.93000986]
[1673302573759,0.00704079,17202.0,17201.0,6.13789929]
[1673302574004,0.00704079,17202.0,17201.0,6.27689929]
[1673302577983,0.00704079,17202.0,17201.0,5.77809929]
[1673302578246,0.00704079,17202.0,17201.0,4.4652054]
[1673302579016,0.00704079,17202.0,17201.0,4.90090778]
[1673302579269,0.00704079,17202.0,17201.0,5.10522594]
[1673302579480,0.00704079,17202.0,17201.0,4.96952261]
[1673302580281,0.00704079,17202.0,17201.0,5.20083796]
[1673302580523,0.00704079,17202.0,17201.0,5.40515517]
[1673302580766,0.00704079,17202.0,17201.0,5.20091417]
[1673302581263,0.00704079,17202.0,17201.0,5.40515517]
[1673302582284,0.00704079,17202.0,17201.0,5.40515945]
[1673302582778,0.00704079,17202.0,17201.0,5.7536134]
[1673302583824,0.00704079,17202.0,17201.0,5.54929191]
[1673302584065,0.00704079,17202.0,17201.0,4.90945481]
[1673302584309,0.00704079,17202.0,17201.0,4.7351037]
[1673302584817,0.00704079,17202.0,17201.0,5.17073626]
[1673302585069,0.00704079,17202.0,17201.0,4.7351037]
[1673302585331,0.00704079,17202.0,17201.0,4.73518419]
[1673302585579,0.00704079,17202.0,17201.0,4.9393447]
[1673302585840,0.00704079,17202.0,17201.0,4.7351037]
[1673302586086,0.00704079,17202.0,17201.0,4.90928979]
[1673302586331,0.00704079,17202.0,17201.0,4.56083584]
[1673302586594,0.00704079,17202.0,17201.0,4.17822501]
[1673302587088,0.00704079,17202.0,17201.0,3.87822501]
[1673302587350,0.00704079,17202.0,17201.0,3.70403892]
[1673302587610,1.50212801,17202.0,17201.0,0.139]
[1673302587868,0.77688373,17200.0,17198.0,1.0]
[1673302588134,0.78653836,17199.0,17198.0,1.0]
[1673302588383,0.66214125,17199.0,17198.0,1.0]
[1673302588640,0.42446336,17199.0,17198.0,1.0]
[1673302588982,1.88180521,17200.0,17198.0,1.0]
[1673302589674,1.45734185,17200.0,17198.0,1.0]
[1673302589934,1.88180521,17200.0,17198.0,1.0]
[1673302590439,0.63996074,17199.0,17198.0,1.0]
[1673302590729,1.0644241,17199.0,17197.0,0.581496]
[1673302591193,1.0644241,17199.0,17198.0,0.045]
[1673302591466,1.0644241,17199.0,17197.0,0.581496]
[1673302591700,1.01747682,17198.0,17197.0,0.581496]
[1673302591951,0.59301346,17198.0,17197.0,0.581496]
[1673302592753,0.59301346,17198.0,17197.0,0.627496]
[1673302592971,0.59301346,17198.0,17197.0,0.581496]
[1673302594015,0.60701346,17198.0,17197.0,0.627496]
[1673302599591,0.60701346,17198.0,17197.0,0.046]
[1673302599854,1.55055046,17198.0,17197.0,0.046]
[1673302600368,0.96908846,17198.0,17197.0,0.046]
[1673302600620,1.39355182,17198.0,17197.0,0.046]
[1673302604239,1.03147682,17198.0,17197.0,0.046]
[1673302604399,1.39355182,17198.0,17197.0,0.046]
[1673302605193,1.03147682,17198.0,17197.0,0.046]
[1673302605468,1.39355182,17198.0,17197.0,0.046]
[1673302609231,1.03147682,17198.0,17197.0,0.046]
[1673302609480,1.39355182,17198.0,17197.0,0.046]
[1673302609734,1.39355182,17198.0,17197.0,0.04592685]
[1673302611468,1.03147682,17198.0,17197.0,0.04592685]
[1673302611708,0.68046028,17197.0,17195.0,0.00332342]
[1673302611975,1.02255735,17196.0,17195.0,0.00332342]
[1673302612228,1.60408735,17196.0,17195.0,0.00332342]
[1673302612498,1.36640946,17196.0,17195.0,0.00332342]
[1673302613300,0.78487946,17196.0,17195.0,0.00332342]
[1673302613821,0.79887946,17196.0,17195.0,0.00732342]
[1673302614374,0.78487946,17196.0,17195.0,0.00332342]
[1673302614626,1.35160656,17196.0,17195.0,0.00732342]
[1673302614880,1.33760656,17196.0,17195.0,0.00332342]
[1673302615406,1.46660656,17196.0,17195.0,0.00332342]
[1673302615684,1.11869252,17196.0,17195.0,0.00332342]
[1673302615944,1.11869252,17196.0,17194.0,0.00457927]
[1673302615945,0.61983193,17195.0,17194.0,0.00094663]
[1673302616234,2.56783939,17195.0,17194.0,0.00094663]
[1673302617799,1.94800746,17195.0,17194.0,1e-08]